fUST/lending_fUST_20241222
["ID","MTS","AMOUNT","RATE_DAILY","PERIOD"]
[346261444,1734846633011,-1723.46378136,0.00011596,2]
[346261445,1734846633039,-696.69823472,0.00011596,2]
[346261446,1734846633050,-5191.14946063,0.00011596,2]
[346261447,1734846633092,-2.8972822,0.00011596,2]
[346261480,1734846638279,-776.77765709,0.00011596,2]
[346261482,1734846638288,-157.343,0.0001233,2]
[346261484,1734846638297,-371.613,0.0001233,2]
[346261486,1734846638306,-8322.74814607,0.000125,2]
[346261648,1734846640444,-8545.96534068,0.000125,2]
[346261992,1734846646671,-2788.5825,0.000125,2]
[346261993,1734846798174,3000.0,0.00019,30]
[346262017,1734847832641,-5696.03276528,0.00011667,2]
[346262018,1734847832655,-2267.67880353,0.00011667,2]
[346262090,1734847838446,-780.72905369,0.00011667,2]
[346262092,1734847838457,-465.00041444,0.00012231,2]
[346262094,1734847838467,-2992.40075806,0.00012271,2]
[346262096,1734847838477,-300.0,0.00012289,2]
[346262098,1734847838489,-300.0,0.0001229,2]
[346262100,1734847838499,-374.644,0.0001233,2]
[346262102,1734847838508,-4430.36031281,0.000125,2]
[346262735,1734847927520,1000.0,0.00019,20]
[346262736,1734848013188,1000.0,0.0002,60]
[346263047,1734849038647,-376.877,0.0001188,2]
[346263049,1734849038657,-7000.0,0.00012,2]
[346263051,1734849038666,-1000.0,0.000122,2]
[346263053,1734849038675,-300.0,0.00012211,2]
[346263055,1734849038685,-300.0,0.00012211,2]
[346263057,1734849038694,-151.0,0.00012212,2]
[346263059,1734849038703,-151.0,0.00012212,2]
[346263061,1734849038712,-151.0,0.00012212,2]
[346263063,1734849038722,-151.0,0.00012212,2]
[346263065,1734849038731,-151.0,0.00012212,2]
[346263067,1734849038740,-151.0,0.00012212,2]
[346263070,1734849038750,-151.0,0.00012212,2]
[346263073,1734849038759,-151.0,0.00012212,2]
[346263076,1734849038769,-151.0,0.00012212,2]
[346263080,1734849038778,-151.0,0.00012212,2]
[346263085,1734849038788,-200.0,0.00012212,2]
[346263089,1734849038797,-168.0,0.00012212,2]
[346263092,1734849038806,-168.0,0.00012212,2]
[346263094,1734849038816,-168.0,0.00012212,2]
[346263096,1734849038825,-187.21,0.00012212,2]
[346263098,1734849038835,-204.5187448,0.00012375,2]
[346263100,1734849038844,-151.0,0.00012499,2]
[346263102,1734849038853,-23136.54485965,0.000125,2]
[346263104,1734849038865,-840.57,0.000125,2]
[346263309,1734849040809,-378.62693066,0.000125,2]
[346263921,1734849046839,-1467.55614779,0.000125,2]
[346263925,1734849046865,-8579.58650901,0.000125,2]
[346264376,1734850232449,-161.168696,0.00011213,2]
[346264378,1734850232460,-161.168696,0.00011232,2]
[346264380,1734850232471,-151.0,0.00011243,2]
[346264382,1734850232480,-161.168696,0.00011251,2]
[346264384,1734850232491,-161.168696,0.00011269,2]
[346264386,1734850232500,-3368.5723577,0.0001127,2]
[346264387,1734850232511,-184.1,0.0001137,2]
[346264389,1734850232521,-379.997,0.0001188,2]
[346264391,1734850232532,-465.00002072,0.00012201,2]
[346264393,1734850232542,-300.0,0.00012242,2]
[346264394,1734850232551,-12.81650405,0.00012242,2]
[346264735,1734850237920,-287.18349595,0.00012242,2]
[346264737,1734850237929,-162.0,0.00012243,2]
[346264739,1734850237939,-162.0,0.00012243,2]
[346264741,1734850237948,-162.0,0.00012243,2]
[346264743,1734850237957,-162.0,0.00012243,2]
[346264745,1734850237967,-162.0,0.00012243,2]
[346264747,1734850237976,-162.0,0.00012243,2]
[346264749,1734850237985,-162.0,0.00012243,2]
[346264751,1734850237995,-162.0,0.00012243,2]
[346264775,1734850238214,-167.0,0.00012243,2]
[346264777,1734850238224,-162.0,0.00012243,2]
[346264779,1734850238233,-167.0,0.00012243,2]
[346264781,1734850238243,-162.0,0.00012243,2]
[346264783,1734850238251,-162.0,0.00012243,2]
[346264785,1734850238261,-167.31,0.00012243,2]
[346264788,1734850238270,-732.60205997,0.000125,2]
[346264790,1734850238286,-265.3311264,0.000125,2]
[346264966,1734850240088,-29536.20853932,0.000125,2]
[346265369,1734850246044,-378.09781183,0.000125,2]
[346265371,1734850400382,3000.0,0.00019,30]
[346266520,1734851446190,-162.95,0.00011491,2]
[346266521,1734851446200,-364.008,0.0001188,2]
[346266522,1734851446209,-53.34555,0.00011999,2]
[346266599,1734852638231,-322.4695486,0.0001,2]
[346266601,1734852638240,-796.7776571,0.00011272,2]
[346266603,1734852638250,-156.0,0.00011491,2]
[346266606,1734852638263,-364.512,0.0001188,2]
[346266608,1734852638273,-300.0,0.00011999,2]
[346266610,1734852638282,-300.0,0.00011999,2]
[346266612,1734852638291,-43905.05259,0.00012,2]
[346266614,1734852638300,-465.00000104,0.0001217,2]
[346266616,1734852638310,-164.09,0.00012198,2]
[346266618,1734852638319,-153.3554759,0.000122,2]
[346266620,1734852638329,-216.8507037,0.000122,2]
[346266622,1734852638338,-84.06716606,0.000122,2]
[346267173,1734852643328,-268.02994734,0.000122,2]
[346267175,1734852643340,-153.3554759,0.000122,2]
[346267177,1734852643349,-428.020275,0.000122,2]
[346267179,1734852643360,-153.0,0.000122,2]
[346267181,1734852643370,-459.0488157,0.000122,2]
[346267184,1734852643380,-153.3256923,0.000122,2]
[346267186,1734852643389,-153.3256923,0.000122,2]
[346267188,1734852643399,-169.92,0.000124,2]
[346267190,1734852643407,-156.0,0.00012491,2]
[346267192,1734852643417,-275.03,0.00012491,2]
[346267193,1734852643427,-1430.94410146,0.000125,2]
[346267196,1734852643441,-916.30000005,0.000125,2]
[346267198,1734852643452,-2213.1,0.000125,2]
[346267752,1734853832647,-796.7776571,0.00010392,2]
[346267753,1734853832656,-796.7776571,0.00010497,2]
[346267754,1734853832667,-162.97286763,0.00011048,2]
[346267755,1734853832676,-776.7776571,0.00011205,2]
[346267756,1734853832686,-380.017,0.0001188,2]
[346267757,1734853832695,-166.0,0.00012127,2]
[346267758,1734853832705,-300.0,0.00012248,2]
[346267759,1734853832714,-300.0,0.00012248,2]
[346267760,1734853832724,-6339.77716108,0.00012249,2]
[346267830,1734853838472,-630.95952202,0.00012249,2]
[346267832,1734853838482,-702.573616,0.000123,2]
[346267834,1734853838492,-153.3554759,0.000123,2]
[346267836,1734853838502,-204.5187448,0.00012375,2]
[346267838,1734853838511,-153.3554759,0.000124,2]
[346267840,1734853838520,-214.1010007,0.000124,2]
[346267842,1734853838530,-153.0,0.00012466,2]
[346267844,1734853838539,-178.16651705,0.00012499,2]
[346267846,1734853838548,-151.0,0.00012499,2]
[346267848,1734853838558,-14056.23326092,0.000125,2]
[346267850,1734853838567,-1000.0,0.000125,2]
[346267852,1734853838576,-412.70201538,0.000125,2]
[346267854,1734853838586,-251.92282872,0.000125,2]
[346267856,1734853838594,-1000.0,0.000125,3]
[346267858,1734853838603,-1000.0,0.000125,5]
[346267860,1734853838612,-1000.0,0.000125,6]
[346267862,1734853838621,-1000.0,0.000125,7]
[346267864,1734853838630,-325.582912,0.000125,2]
[346267866,1734853838640,-325.582912,0.000125,2]
[346267868,1734853838648,-325.582912,0.000125,2]
[346267870,1734853838658,-325.582912,0.000125,2]
[346267872,1734853838667,-325.582912,0.000125,2]
[346267874,1734853838679,-325.582912,0.000125,2]
[346267876,1734853838689,-325.582912,0.000125,2]
[346267878,1734853838699,-325.582912,0.000125,2]
[346267880,1734853838710,-325.582912,0.000125,2]
[346267882,1734853838719,-325.582912,0.000125,2]
[346267884,1734853838728,-325.582912,0.000125,2]
[346267886,1734853838738,-325.582912,0.000125,2]
[346267888,1734853838746,-325.582916,0.000125,2]
[346267890,1734853838755,-151.0,0.000125,2]
[346267914,1734853838964,-151.0,0.000125,2]
[346267916,1734853838974,-151.0,0.000125,2]
[346267918,1734853838984,-151.0,0.000125,2]
[346267920,1734853838993,-151.0,0.000125,2]
[346267922,1734853839002,-151.0,0.000125,2]
[346267924,1734853839011,-154.275825,0.000125,2]
[346267926,1734853839021,-151.0,0.000125,2]
[346267928,1734853839030,-243.718108,0.000125,2]
[346267930,1734853839039,-151.597183,0.000125,2]
[346267932,1734853839047,-495.182297,0.000125,2]
[346267934,1734853839056,-495.182297,0.000125,2]
[346267936,1734853839065,-495.182297,0.000125,2]
[346267938,1734853839075,-495.182297,0.000125,2]
[346267940,1734853839084,-495.182297,0.000125,2]
[346267942,1734853839094,-495.182297,0.000125,2]
[346267944,1734853839103,-495.182297,0.000125,2]
[346267946,1734853839111,-495.182297,0.000125,2]
[346267948,1734853839120,-495.182297,0.000125,2]
[346267950,1734853839129,-495.182297,0.000125,2]
[346267952,1734853839139,-495.182297,0.000125,2]
[346267954,1734853839148,-495.182297,0.000125,2]
[346267956,1734853839157,-495.182297,0.000125,2]
[346267958,1734853839166,-495.182297,0.000125,2]
[346267960,1734853839178,-495.182297,0.000125,2]
[346267962,1734853839187,-495.182297,0.000125,2]
[346267964,1734853839196,-495.182297,0.000125,2]
[346267966,1734853839205,-495.182297,0.000125,2]
[346267968,1734853839215,-495.182297,0.000125,2]
[346267970,1734853839224,-495.182303,0.000125,2]
[346267972,1734853839233,-151.0,0.000125,2]
[346267974,1734853839242,-233.641732,0.000125,2]
[346267976,1734853839251,-162.080446,0.000125,2]
[346267978,1734853839260,-338.051592,0.000125,2]
[346267980,1734853839269,-338.051592,0.000125,2]
[346267982,1734853839280,-338.051592,0.000125,2]
[346267984,1734853839290,-338.051592,0.000125,2]
[346267986,1734853839299,-338.051592,0.000125,2]
[346267988,1734853839309,-338.051592,0.000125,2]
[346267990,1734853839318,-338.051592,0.000125,2]
[346267992,1734853839327,-338.051592,0.000125,2]
[346267995,1734853839337,-338.051592,0.000125,2]
[346267997,1734853839346,-338.051592,0.000125,2]
[346267999,1734853839355,-338.051592,0.000125,2]
[346268001,1734853839364,-338.051592,0.000125,2]
[346268003,1734853839373,-338.051592,0.000125,2]
[346268005,1734853839383,-338.051592,0.000125,2]
[346268007,1734853839392,-338.051592,0.000125,2]
[346268009,1734853839401,-338.051592,0.000125,2]
[346268011,1734853839410,-338.051592,0.000125,2]
[346268013,1734853839419,-338.051592,0.000125,2]
[346268015,1734853839429,-338.051592,0.000125,2]
[346268017,1734853839438,-338.051597,0.000125,2]
[346268019,1734853839448,-154.184414,0.000125,2]
[346268021,1734853839457,-151.0,0.000125,2]
[346268023,1734853839466,-151.0,0.000125,2]
[346268025,1734853839475,-151.0,0.000125,2]
[346268027,1734853839484,-151.0,0.000125,2]
[346268029,1734853839493,-265.934909,0.000125,2]
[346268031,1734853839502,-151.0,0.000125,2]
[346268033,1734853839512,-151.0,0.000125,2]
[346268035,1734853839521,-151.0,0.000125,2]
[346268037,1734853839530,-151.0,0.000125,2]
[346268039,1734853839540,-151.0,0.000125,2]
[346268041,1734853839549,-151.0,0.000125,2]
[346268043,1734853839559,-151.0,0.000125,2]
[346268045,1734853839568,-151.0,0.000125,2]
[346268047,1734853839577,-151.0,0.000125,2]
[346268049,1734853839587,-151.0,0.000125,2]
[346268050,1734853839595,-151.0,0.000125,2]
[346268052,1734853839605,-151.0,0.000125,2]
[346268054,1734853839614,-151.0,0.000125,2]
[346268057,1734853839623,-151.0,0.000125,2]
[346268059,1734853839632,-151.0,0.000125,2]
[346268061,1734853839641,-151.0,0.000125,2]
[346268063,1734853839651,-651.225624,0.000125,2]
[346268065,1734853839660,-651.225624,0.000125,2]
[346268067,1734853839669,-651.225624,0.000125,2]
[346268069,1734853839681,-651.225624,0.000125,2]
[346268071,1734853839690,-651.225621,0.000125,2]
[346268072,1734853839699,-151.0,0.000125,2]
[346268073,1734853839708,-155.100553,0.000125,2]
[346268074,1734853839717,-668.898196,0.000125,2]
[346268075,1734853839726,-668.898196,0.000125,2]
[346268076,1734853839735,-668.898196,0.000125,2]
[346268077,1734853839744,-668.898196,0.000125,2]
[346268078,1734853839753,-668.898196,0.000125,2]
[346268079,1734853839762,-668.898196,0.000125,2]
[346268080,1734853839772,-668.898196,0.000125,2]
[346268081,1734853839782,-668.898196,0.000125,2]
[346268082,1734853839791,-668.898196,0.000125,2]
[346268083,1734853839800,-668.898196,0.000125,2]
[346268084,1734853839809,-668.898196,0.000125,2]
[346268085,1734853839818,-151.0,0.000125,2]
[346268086,1734853839827,-668.898196,0.000125,2]
[346268087,1734853839837,-180.12272,0.000125,2]
[346268088,1734853839846,-668.898196,0.000125,2]
[346268089,1734853839855,-668.898196,0.000125,2]
[346268090,1734853839867,-668.898196,0.000125,2]
[346268091,1734853839876,-668.898196,0.000125,2]
[346268092,1734853839885,-668.898196,0.000125,2]
[346268093,1734853839894,-668.898196,0.000125,2]
[346268095,1734853839904,-668.898196,0.000125,2]
[346268097,1734853839913,-668.89818758,0.000125,2]
[346268099,1734853839929,-151.0,0.000125,2]
[346268101,1734853839939,-151.0,0.000125,2]
[346268103,1734853839948,-151.0,0.000125,2]
[346268105,1734853839957,-151.0,0.000125,2]
[346268107,1734853839966,-151.0,0.000125,2]
[346268109,1734853839975,-151.0,0.000125,2]
[346268111,1734853839985,-151.0,0.000125,2]
[346268113,1734853839995,-151.0,0.000125,2]
[346268115,1734853840004,-151.0,0.000125,2]
[346268117,1734853840013,-151.0,0.000125,2]
[346268119,1734853840023,-151.0,0.000125,2]
[346268122,1734853840032,-151.0,0.000125,2]
[346268124,1734853840041,-267.824096,0.000125,2]
[346268127,1734853840051,-151.0,0.000125,2]
[346268130,1734853840059,-151.0,0.000125,2]
[346268133,1734853840069,-151.0,0.000125,2]
[346268135,1734853840077,-151.0,0.000125,2]
[346268138,1734853840087,-151.0,0.000125,2]
[346268140,1734853840097,-151.0,0.000125,2]
[346268142,1734853840106,-151.0,0.000125,2]
[346268143,1734853840117,-151.0,0.000125,2]
[346268145,1734853840126,-151.0,0.000125,2]
[346268147,1734853840136,-151.0,0.000125,2]
[346268150,1734853840146,-151.0,0.000125,2]
[346268152,1734853840155,-151.0,0.000125,2]
[346268154,1734853840164,-169.988766,0.000125,2]
[346268156,1734853840175,-451.037355,0.000125,2]
[346268157,1734853840184,-451.037355,0.000125,2]
[346268160,1734853840194,-451.037355,0.000125,2]
[346268162,1734853840203,-451.037355,0.000125,2]
[346268163,1734853840213,-451.037355,0.000125,2]
[346268166,1734853840222,-451.037355,0.000125,2]
[346268168,1734853840231,-451.037355,0.000125,2]
[346268170,1734853840241,-451.037355,0.000125,2]
[346268171,1734853840250,-451.037355,0.000125,2]
[346268173,1734853840260,-451.037355,0.000125,2]
[346268175,1734853840270,-451.037355,0.000125,2]
[346268178,1734853840279,-515.942633,0.000125,2]
[346268180,1734853840288,-451.037355,0.000125,2]
[346268182,1734853840298,-151.0,0.000125,2]
[346268184,1734853840308,-515.942633,0.000125,2]
[346268186,1734853840318,-451.037355,0.000125,2]
[346268188,1734853840328,-151.0,0.000125,2]
[346268190,1734853840338,-515.942633,0.000125,2]
[346268192,1734853840347,-151.0,0.000125,2]
[346268194,1734853840356,-451.037355,0.000125,2]
[346268196,1734853840365,-515.942633,0.000125,2]
[346268198,1734853840374,-151.0,0.000125,2]
[346268200,1734853840383,-451.037355,0.000125,2]
[346268202,1734853840393,-515.942633,0.000125,2]
[346268204,1734853840402,-151.0,0.000125,2]
[346268206,1734853840411,-451.037355,0.000125,2]
[346268208,1734853840421,-515.942633,0.000125,2]
[346268210,1734853840430,-151.0,0.000125,2]
[346268212,1734853840439,-451.037355,0.000125,2]
[346268213,1734853840449,-515.942633,0.000125,2]
[346268215,1734853840458,-151.0,0.000125,2]
[346268218,1734853840468,-451.037355,0.000125,2]
[346268220,1734853840478,-515.942633,0.000125,2]
[346268221,1734853840487,-451.037355,0.000125,2]
[346268223,1734853840496,-151.0,0.000125,2]
[346268225,1734853840506,-515.942633,0.000125,2]
[346268227,1734853840515,-451.037347,0.000125,2]
[346268229,1734853840524,-151.0,0.000125,2]
[346268231,1734853840533,-515.942633,0.000125,2]
[346268233,1734853840542,-151.0,0.000125,2]
[346268235,1734853840551,-515.942633,0.000125,2]
[346268238,1734853840562,-151.0,0.000125,2]
[346268239,1734853840571,-515.942633,0.000125,2]
[346268242,1734853840581,-151.0,0.000125,2]
[346268243,1734853840591,-515.942633,0.000125,2]
[346268245,1734853840602,-151.0,0.000125,2]
[346268248,1734853840611,-515.942633,0.000125,2]
[346268249,1734853840620,-151.0,0.000125,2]
[346268251,1734853840629,-515.942633,0.000125,2]
[346268254,1734853840638,-151.0,0.000125,2]
[346268256,1734853840647,-515.942633,0.000125,2]
[346268258,1734853840655,-151.0,0.000125,2]
[346268259,1734853840665,-515.942633,0.000125,2]
[346268261,1734853840675,-207.181973,0.000125,2]
[346268263,1734853840684,-515.942633,0.000125,2]
[346268265,1734853840693,-515.942633,0.000125,2]
[346268267,1734853840702,-515.942633,0.000125,2]
[346268269,1734853840711,-151.0,0.000125,2]
[346268271,1734853840721,-151.0,0.000125,2]
[346268273,1734853840730,-151.0,0.000125,2]
[346268275,1734853840739,-151.0,0.000125,2]
[346268277,1734853840748,-151.0,0.000125,2]
[346268279,1734853840757,-151.0,0.000125,2]
[346268281,1734853840766,-268.797254,0.000125,2]
[346268283,1734853840775,-818.31258,0.000125,2]
[346268286,1734853840784,-818.31258,0.000125,2]
[346268288,1734853840793,-818.31258,0.000125,2]
[346268290,1734853840803,-818.31258,0.000125,2]
[346268292,1734853840813,-818.31258,0.000125,2]
[346268294,1734853840822,-818.31258,0.000125,2]
[346268296,1734853840831,-818.31258,0.000125,2]
[346268298,1734853840840,-818.31258,0.000125,2]
[346268300,1734853840849,-818.31258,0.000125,2]
[346268302,1734853840859,-818.31258,0.000125,2]
[346268304,1734853840868,-818.31258,0.000125,2]
[346268306,1734853840877,-818.31258,0.000125,2]
[346268308,1734853840886,-818.31258,0.000125,2]
[346268310,1734853840895,-818.31258,0.000125,2]
[346268312,1734853840904,-818.31258,0.000125,2]
[346268314,1734853840913,-818.31258,0.000125,2]
[346268316,1734853840927,-818.31258,0.000125,2]
[346268318,1734853840935,-818.31258,0.000125,2]
[346268320,1734853840944,-818.31258,0.000125,2]
[346268322,1734853840954,-818.31258939,0.000125,2]
[346268324,1734853840963,-151.0,0.000125,2]
[346268327,1734853840974,-151.0,0.000125,2]
[346268328,1734853840983,-207.489292,0.000125,2]
[346268331,1734853840992,-151.0,0.000125,2]
[346268333,1734853841002,-151.0,0.000125,2]
[346268334,1734853841011,-151.0,0.000125,2]
[346268336,1734853841020,-151.0,0.000125,2]
[346268339,1734853841029,-151.0,0.000125,2]
[346268340,1734853841038,-151.0,0.000125,2]
[346268342,1734853841047,-151.0,0.000125,2]
[346268345,1734853841056,-151.0,0.000125,2]
[346268347,1734853841066,-151.0,0.000125,2]
[346268348,1734853841075,-151.0,0.000125,2]
[346268350,1734853841084,-151.0,0.000125,2]
[346268352,1734853841093,-151.0,0.000125,2]
[346268354,1734853841101,-174.994221,0.000125,2]
[346268356,1734853841110,-1478.210146,0.000125,2]
[346268358,1734853841119,-1478.210146,0.000125,2]
[346268360,1734853841129,-1478.210146,0.000125,2]
[346268362,1734853841137,-1478.210146,0.000125,2]
[346268364,1734853841146,-1478.210146,0.000125,2]
[346268366,1734853841155,-1478.210146,0.000125,2]
[346268368,1734853841164,-1478.210146,0.000125,2]
[346268370,1734853841175,-1478.210146,0.000125,2]
[346268372,1734853841184,-1478.210146,0.000125,2]
[346268375,1734853841195,-1478.210146,0.000125,2]
[346268376,1734853841204,-1478.210146,0.000125,2]
[346268378,1734853841214,-1478.210146,0.000125,2]
[346268380,1734853841222,-1478.210146,0.000125,2]
[346268383,1734853841231,-1478.210146,0.000125,2]
[346268384,1734853841240,-275.389586,0.000125,2]
[346268386,1734853841250,-1478.210146,0.000125,2]
[346268388,1734853841259,-275.389586,0.000125,2]
[346268390,1734853841268,-1478.210146,0.000125,2]
[346268392,1734853841280,-275.389586,0.000125,2]
[346268394,1734853841289,-1478.210146,0.000125,2]
[346268396,1734853841298,-250.51841028,0.000125,2]
[346268403,1734853841349,-24.87117572,0.000125,2]
[346268405,1734853841359,-1478.210146,0.000125,2]
[346268407,1734853841367,-275.389586,0.000125,2]
[346268409,1734853841377,-1478.210146,0.000125,2]
[346268411,1734853841386,-275.389586,0.000125,2]
[346268413,1734853841394,-1478.210153,0.000125,2]
[346268415,1734853841404,-275.389586,0.000125,2]
[346268417,1734853841413,-275.389586,0.000125,2]
[346268419,1734853841424,-275.389586,0.000125,2]
[346268421,1734853841433,-275.389586,0.000125,2]
[346268423,1734853841442,-275.389586,0.000125,2]
[346268425,1734853841451,-275.389586,0.000125,2]
[346268427,1734853841459,-275.389586,0.000125,2]
[346268429,1734853841468,-275.389586,0.000125,2]
[346268431,1734853841477,-53.82336946,0.000125,2]
[346268719,1734853844398,-630.95952202,0.00012127,2]
[346268721,1734853844407,-221.56621654,0.000125,2]
[346268723,1734853844417,-275.389586,0.000125,2]
[346268725,1734853844429,-275.389586,0.000125,2]
[346268727,1734853844438,-275.389586,0.000125,2]
[346268729,1734853844447,-275.389586,0.000125,2]
[346268731,1734853844456,-275.389588,0.000125,2]
[346268733,1734853844466,-151.0,0.000125,2]
[346268735,1734853844475,-151.0,0.000125,2]
[346268738,1734853844484,-153.279715,0.000125,2]
[346268740,1734853844493,-413.88714,0.000125,2]
[346268742,1734853844502,-413.88714,0.000125,2]
[346268744,1734853844511,-413.88714,0.000125,2]
[346268746,1734853844519,-413.88714,0.000125,2]
[346268748,1734853844528,-413.88714,0.000125,2]
[346268750,1734853844537,-413.88714,0.000125,2]
[346268752,1734853844548,-413.88714,0.000125,2]
[346268754,1734853844558,-413.88714,0.000125,2]
[346268756,1734853844568,-413.88714,0.000125,2]
[346268758,1734853844577,-413.88714,0.000125,2]
[346268760,1734853844586,-413.88714,0.000125,2]
[346268762,1734853844596,-413.88714,0.000125,2]
[346268764,1734853844605,-151.0,0.000125,2]
[346268766,1734853844615,-151.0,0.000125,2]
[346268768,1734853844624,-152.644677,0.000125,2]
[346268770,1734853844633,-413.88714,0.000125,2]
[346268772,1734853844643,-151.0,0.000125,2]
[346268774,1734853844652,-413.88714,0.000125,2]
[346268776,1734853844662,-151.0,0.000125,2]
[346268778,1734853844671,-413.88714,0.000125,2]
[346268780,1734853844683,-75.78483744,0.000125,2]
[346268937,1734853846674,-75.21516256,0.000125,2]
[346268938,1734853846686,-295.38483744,0.000125,2]
[346268975,1734853997794,3000.0,0.00019,30]
[346268979,1734854068792,1294.2,6.56e-05,2]
[346268981,1734854491436,160.0,0.00019135,120]
[346269012,1734855032703,-379.432,0.0001053,2]
[346269014,1734855032713,-379.432,0.00010636,2]
[346269017,1734855032724,-7224.7135441,0.00011418,2]
[346269019,1734855032734,-379.432,0.0001188,2]
[346269021,1734855032743,-300.0,0.0001213,2]
[346269023,1734855032754,-300.0,0.0001213,2]
[346269025,1734855032764,-4425.8220677,0.00012134,2]
[346269027,1734855032775,-3731.16511147,0.00012134,2]
[346269135,1734855038580,-964.49456927,0.00012013,2]
[346269137,1734855038590,-964.49456927,0.00012134,2]
[346269139,1734855038599,-366.0,0.00012136,2]
[346269141,1734855038608,-366.0,0.00012136,2]
[346269143,1734855038617,-366.0,0.00012136,2]
[346269145,1734855038627,-366.0,0.00012136,2]
[346269147,1734855038636,-366.0,0.00012136,2]
[346269149,1734855038645,-366.0,0.00012136,2]
[346269151,1734855038654,-366.0,0.00012136,2]
[346269153,1734855038663,-366.0,0.00012136,2]
[346269155,1734855038673,-370.56,0.00012136,2]
[346269157,1734855038682,-168.0,0.00012136,2]
[346269159,1734855038691,-169.86,0.00012136,2]
[346269161,1734855038701,-465.00000104,0.0001214,2]
[346269163,1734855038710,-763.35949563,0.000122,2]
[346269165,1734855038719,-4039.19662949,0.00012217,2]
[346269167,1734855038728,-214.1010007,0.000123,2]
[346269169,1734855038737,-153.0,0.000123,2]
[346269171,1734855038746,-188.6550974,0.000123,2]
[346269173,1734855038757,-214.0553482,0.000123,2]
[346269175,1734855038766,-203.7545868,0.00012375,2]
[346269177,1734855038775,-6651.92514891,0.00012435,2]
[346269180,1734855038790,-4815.7,0.00012435,2]
[346271151,1734856064708,13900.0,0.0001,2]
[346271234,1734856238702,-378.472,0.0001053,2]
[346271237,1734856238711,-378.472,0.00010636,2]
[346271238,1734856238721,-753.9484315,0.00011566,2]
[346271251,1734856238833,-91.2701197,0.00011566,2]
[346271253,1734856238843,-378.307,0.0001188,2]
[346271255,1734856238852,-250.0,0.000125,2]
[346271257,1734856238861,-1000.0,0.00012516,2]
[346271259,1734856238870,-153.3256923,0.000126,2]
[346271261,1734856238880,-300.0,0.00012623,2]
[346271263,1734856238889,-300.0,0.00012623,2]
[346271265,1734856238899,-150.0,0.00012624,2]
[346271267,1734856238908,-534.0,0.00012624,2]
[346271269,1734856238917,-698.097188,0.00012624,2]
[346271279,1734856238986,-1433.902812,0.00012624,2]
[346271280,1734856238996,-2360.0,0.00012624,2]
[346271283,1734856239006,-2333.63484306,0.00012624,2]
[346271794,1734856243876,-378.472,0.00010425,2]
[346271796,1734856243886,-957.053,0.00012624,2]
[346272091,1734856246803,-1943.85147386,0.00012624,2]